Cogmind - Beta 13 X1 @@@ ROGUE MODE // 2023.06.25 @ 08:43:15 Player: JackNine Result: Destroyed by GU-GIK(R) with Subdweller Beam Cannon Performance ------------- Evolutions (0) 0 Regions Visited (2) 400 Robots Destroyed (26) 130 Value Destroyed (745) 745 Prototype IDs (2) 40 Alien Tech Used (0) 0 Bonus (19) 19 TOTAL SCORE: 1334 Bonus ------- High Alert Combat Kills 19 Cogmind --------- Core Integrity 0/250 Matter 288/300 Energy 248/250 System Corruption 0% Temperature Cool (11) Movement Rolling (105) Location -10/Subcaves Parts ------- > --- POWER (1) -------- Ion Engine > --- PROPULSION (2) --- Compact Wheel Subdweller Monowheel > --- UTILITY (2) ------ Scrap Shield > --- WEAPON (2) ------- Subdweller Beam Cannon Subdweller Machine Gun > --- INVENTORY (5) ---- Subdweller Monowheel Subdweller Monowheel Medium Laser Subdweller Machine Gun Peak State ------------ > --- POWER ------------ Ion Engine > --- PROPULSION ------- Light Treads Compact Wheel > --- UTILITY ---------- Large Storage Unit Light Armor Plating > --- WEAPON ----------- Subdweller Machine Gun Barrage Gun > --- INVENTORY -------- Ion Engine Wheel Compact Wheel Light Armor Plating Scrap Shield Scrap Shield EM Pulse Gun Medium Laser Light Assault Rifle Subdweller Machine Gun Subdweller Machine Gun Subdweller Shrapnel Launcher [Rating: 12] Favorites ----------- Power Ion Engine Engine Ion Engine Propulsion Light Treads Treads Light Treads Wheel Compact Wheel Utility Light Armor Plating Storage Large Storage Unit Protection Light Armor Plating Weapon EM Pulse Gun Energy Gun EM Pulse Gun Energy Cannon Subdweller Beam Cannon Ballistic Gun Subdweller Machine Gun Build | -11 -10 -10 ------- Run | Jun Mat Sub Slots Evolved . | . . . Power . | . . . Propulsion . | . . . Utility . | . . . Weapon . | . . . Parts Attached 32 | 6 6 20 Power 3 | 1 1 1 Engine 3 | 1 1 1 Core . | . . . Reactor . | . . . Propulsion 7 | 2 . 5 Treads 2 | 1 . 1 Leg . | . . . Wheel 5 | 1 . 4 Hover . | . . . Flight . | . . . Utility 7 | 1 3 3 Device . | . . . Storage 3 | 1 2 . Processor . | . . . Hackware . | . . . Protection 4 | . 1 3 Artifact . | . . . Weapon 15 | 2 2 11 Energy Gun 8 | 1 2 5 Energy Cannon 1 | . . 1 Ballistic Gun 6 | 1 . 5 Ballistic Cannon . | . . . Launcher . | . . . Special Weapon . | . . . Impact Weapon . | . . . Slashing Weapon . | . . . Piercing Weapon . | . . . Special Melee Weapon . | . . . Unidentified Prototypes . | . . . Parts Lost 14 | . . 14 Power 1 | . . 1 Propulsion 5 | . . 5 Utility 2 | . . 2 Weapon 6 | . . 6 Highest Loss Streak 7 | . . 7 To Critical Strikes . | . . . Average Slot Usage (%) 95 | . 99 93 Engine 13 | . 14 13 Treads 11 | . 14 10 Wheel 15 | . 14 16 Storage 12 | . 16 10 Protection 12 | . 10 14 Energy Gun 18 | . 27 14 Energy Cannon 2 | . . 3 Ballistic Gun 7 | . . 9 Naked Turns . | . . . Heaviest Build 36 | 12 32 36 Greatest Support 36 | 10 10 36 Greatest Overweight (x) 7 | 1 3 7 Average Overweight (x) 1 | . 2 1 Largest Inventory Capacity 15 | 8 15 15 Average Capacity 11 | 6 10 12 Most Carried 15 | 4 11 15 Average Carried 9 | 2 9 9 Final Capacity 15 | 8 15 5 Final Carried 11 | 4 11 4 Class Distribution -------------------- 56% | Mutant 43% | Subdweller-Mutant Dominant Class ---------------- Mutant | -10/Materials Subdweller-Mutant | -10/Subcaves Resources | -11 -10 -10 ----------- Run | Jun Mat Sub Matter Collected 509 | 173 137 199 Remotely . | . . . Salvage Created 929 | . 407 522 Parts 67 | . 36 31 Haulers Intercepted 1 | . 1 . Recyclers Shooed . | . . . Parts Field Recycled . | . . . Retrieved Matter . | . . . Parts Self-Destructed 4 | . . 4 Prevented 1 | . . 1 Kills | -11 -10 -10 ------- Run | Jun Mat Sub Combat Hostiles Destroyed 23 | . 13 10 Guns 19 | . 11 8 Cannons 1 | . . 1 AOE 3 | . 2 1 Classes Destroyed 6 | . 5 1 Builder 1 | . 1 . Hauler 1 | . 1 . Watcher 1 | . 1 . Swarmer 6 | . 6 . Grunt 9 | . 7 2 Subdweller 8 | . . 8 Best Kill Streak 6 | . 6 2 Combat Bots Only 6 | . 6 2 Max Kills in Single Turn 2 | . 2 1 Gunslinging 1 | . 1 . Exploded 2 | . 2 1 Melee . | . . . Uniques/NPCs Destroyed . | . . . Combat | -11 -10 -10 -------- Run | Jun Mat Sub Damage Taken 1785 | . 261 1524 Core 265 | . 74 191 Absorbed by Shields . | . . . Core Remaining (%) 100 | 100 . . Volleys Fired 69 | . 18 51 Largest 2 | . 2 2 Hottest 110 | . 80 110 Shots Fired 129 | . 36 93 Gun 117 | . 36 81 Cannon 12 | . . 12 Launcher . | . . . Special . | . . . Kinetic 20 | . . 20 Thermal 33 | . . 33 Explosive . | . . . Electromagnetic 76 | . 36 40 Robot Hit Streak 12 | . 7 12 Robot Miss Streak 4 | . 4 2 Penetration Max . | . . . Secondary Targets 3 | . 3 . Max Gunslinging Chain 1 | . 1 . Shots Hit Robots 86 | . 23 63 Core Hits 44 | . 20 24 Critical Kills . | . . . Critical Parts Destroyed . | . . . Critical Strikes 3 | . . 3 Destroy 1 | . . 1 Corrupt 2 | . . 2 Melee Attacks . | . . . Impact . | . . . Slashing . | . . . Piercing . | . . . Sneak Attacks . | . . . Combat Hostiles . | . . . Follow-up Attacks . | . . . Damage Inflicted 1861 | . 750 1111 Guns 1217 | . 282 935 Cannons 110 | . . 110 Explosions 534 | . 468 66 Melee . | . . . Ramming . | . . . Kinetic 337 | . . 337 Thermal 563 | . 128 435 Explosive 340 | . 340 . Electromagnetic 621 | . 282 339 Impact . | . . . Slashing . | . . . Piercing . | . . . Highest Corruption . | . . . Average Corruption . | . . . Corruption Purged . | . . . Corruption Blocked . | . . . Overload Shots . | . . . Overflow Damage 58 | . 58 . Projectiles . | . . . Explosions 58 | . 58 . Melee . | . . . Knockbacks . | . . . Impact . | . . . Kinetic . | . . . Secondary . | . . . Self-Inflicted Damage 157 | . 145 12 Shots 4 | . 3 1 Rammed . | . . . Targets Rammed . | . . . Kicked . | . . . Crushed . | . . . Highest Temperature 96 | . 96 28 Average Temperature 27 | . 33 9 Received Heat Transfer 180 | . 36 144 Siege Activations . | . . . Robots Corrupted . | . . . Combat Hostiles . | . . . Parts Fried 2 | . . 2 Impact Corruptions . | . . . Robots Melted . | . . . Combat Hostiles . | . . . Parts Melted . | . . . Heat Transferred 795 | . 200 595 Parts Sabotaged . | . . . Parts Stolen . | . . . Parts Stripped . | . . . Power Chain Reactions 3 | . 2 1 Missiles Intercepted . | . . . Alert | -11 -10 -10 ------- Run | Jun Mat Sub Peak Influence 465 | . 465 . Initial . | . . . Average 141 | . 154 . Maximum Alert Level 2 | . 2 . Low Security (%) 58 | 100 55 . Level 1 38 | . 41 . Level 2 2 | . 2 . Level 3 . | . . . Level 4 . | . . . Level 5 . | . . . High Security . | . . . Max Security . | . . . Squads Dispatched 2 | . 2 . Investigation . | . . . Extermination . | . . . Reinforcement 2 | . 2 . Assault . | . . . Garrison . | . . . Intercept . | . . . Searches Triggered . | . . . Construction Impeded . | . . . Haulers Reinforced . | . . . Active Scanning Responses . | . . . Cargo Convoy Interrupts . | . . . Stealth | -11 -10 -10 --------- Run | Jun Mat Sub Distress Signals 2 | . 2 . Communications Jammed . | . . . Distress Signals . | . . . Times Spotted 30 | . 17 13 Peak Tracking Total 8 | . 8 3 Tactical Retreats 1 | . . 1 Traps | -11 -10 -10 ------- Run | Jun Mat Sub Traps Triggered 3 | . . 3 Indirectly . | . . . Trap Hack Attempts . | . . . Triggered . | . . . Disarmed . | . . . Reprogrammed . | . . . Reused . | . . . Traps Extracted . | . . . Installed . | . . . Triggered . | . . . Machines | -11 -10 -10 ---------- Run | Jun Mat Sub Machines Disabled 1 | . 1 . Max in Single Turn 1 | . 1 . Machines Repaired . | . . . Machines Sabotaged . | . . . Overloaded Fab Kills . | . . . Hacking | -11 -10 -10 --------- Run | Jun Mat Sub Machines Accessed 2 | . 2 . Terminals 2 | . 2 . Fabricators . | . . . Repair Stations . | . . . Recycling Units . | . . . Scanalyzers . | . . . Garrison Access . | . . . Total Hacks 6 | . 6 . Successful 3 | . 3 . Failed 3 | . 3 . Catastrophic . | . . . Database Lockouts . | . . . Manual 5 | . 5 . Terminals 6 | . 6 . Fabricators . | . . . Repair Stations . | . . . Recycling Units . | . . . Scanalyzers . | . . . Garrison Access . | . . . Terminal Hacks 3 | . 3 . Robot Analysis 2 | . 2 . Prototype ID Bank 1 | . 1 . Fabricator Hacks . | . . . Repair Station Hacks . | . . . Recycling Unit Hacks . | . . . Scanalyzer . | . . . Garrison Access Hacks . | . . . Unauthorized Hacks . | . . . Terminals . | . . . Fabricators . | . . . Repair Stations . | . . . Recycling Units . | . . . Scanalyzers . | . . . Garrison Access . | . . . Data Cores Recovered . | . . . Used . | . . . Hacking Detections 1 | . 1 . Full Trace Events . | . . . Feedback Events . | . . . Feedback Blocked . | . . . Robot Schematics Acquired . | . . . Robots Built . | . . . Authchips . | . . . Time . | . . . Total Robot Build Rating . | . . . Part Schematics Acquired . | . . . Parts Built . | . . . Authchips . | . . . Time . | . . . Total Part Build Rating . | . . . Parts Repaired . | . . . Time . | . . . Parts Recycled . | . . . Recycled Matter . | . . . Retrieved Matter . | . . . Retrieved Components . | . . . Parts Scanalyzed . | . . . Part Schematics Acquired . | . . . Parts Damaged . | . . . Bothacking | -11 -10 -10 ------------ Run | Jun Mat Sub Used RIF Installer . | . . . Robots Hacked . | . . . Non-combat . | . . . Combat . | . . . Robot Hacks Applied . | . . . Relay Couplers Released . | . . . Fabnet Peak Effective % . | . . . Robots Rewired . | . . . Allies Hacked . | . . . Hacks Repelled . | . . . Allies | -11 -10 -10 -------- Run | Jun Mat Sub Total Allies . | . . . Largest Group . | . . . Highest-Rated Group . | . . . Highest-Rated Ally . | . . . Total Orders . | . . . Ally Attacks . | . . . Total Damage . | . . . Kills . | . . . Allies Corrupted . | . . . Allies Melted . | . . . Intel | -11 -10 -10 ------- Run | Jun Mat Sub Robot Analysis Total 2 | . 2 . Derelict Logs Recovered 2 | . . 2 Drone Launches . | . . . Drone Recoveries . | . . . Exploration | -11 -10 -10 ------------- Run | Jun Mat Sub Turns Passed 1736 | 46 506 1184 Spaces Moved 1173 | 39 348 786 Core 4 | 3 . 1 Treads 37 | . . 37 Legs . | . . . Wheels 1132 | 36 348 748 Hover . | . . . Flight . | . . . Fastest Speed 50 | 50 95 90 Average Speed 119 | 85 111 124 Slowest Speed 400 | 95 125 400 Overloaded Moves . | . . . Propulsion Burnouts . | . . . Robots Hopped . | . . . Cave-ins Triggered . | . . . Exploration Rate (%) 41 | 3 75 47 Regions Visited 2 Branch Regions 1 Pre-discovered Areas 1 | . . 1 Known Exits Taken . | . . . Unknown Exits Taken 2 | 1 1 . Scrap Searched 17 | . . 17 Spaces Dug . | . . . Terrain Destroyed 62 | . 54 8 Melee . | . . . Projectile . | . . . AOE 62 | . 54 8 Terrain Rammed . | . . . Walls Destroyed . | . . . Machines Disabled . | . . . Actions | -11 -10 -10 --------- Run | Jun Mat Sub Total 1379 | 48 432 899 Wait 71 | . 46 25 Move 1171 | 38 347 786 Hop . | . . . Pick Up 20 | 4 8 8 Fast Attach 18 | 6 3 9 Attach 10 | . . 10 Detach 6 | . 2 4 Swap 4 | . 3 1 Drop 7 | . 5 2 Fire 69 | . 18 51 Melee . | . . . Ram . | . . . Kick . | . . . Crush . | . . . Escape Stasis . | . . . Rewire . | . . . Trap . | . . . Miscellaneous 3 | . . 3 Route ------- -11/Junkyard -10/Materials (discovered 5 exits: [*Mat x2] / [*Min x2] / [*Sub]) -10/Subcaves History --------- Turn | Location | Event 16 | -11/Junkyard | Discovered new exit (range 15) 47 | -11/Junkyard | Entered Materials 210 | -10/Materials | Discovered new exit (range 9) 312 | -10/Materials | Build established: Mutant 319 | -10/Materials | Discovered new exit (range 14) 391 | -10/Materials | Discovered new exit (range 10) 473 | -10/Materials | Discovered new exit (range 8) 545 | -10/Materials | Discovered new exit (range 8) 553 | -10/Materials | Entered Subcaves 554 | -10/Subcaves | Ambushed by Subdwellers from Twisted Machinery 839 | -10/Subcaves | Lost 3 parts (1n2w) 1083 | -10/Subcaves | Learned Materials terminal intel 1301 | -10/Subcaves | Build established: Subdweller-Mutant 1400 | -10/Subcaves | Core integrity fell below 50% 1428 | -10/Subcaves | Core integrity fell below 20% 1489 | -10/Subcaves | Lost 7 parts (1p3n1u2w) 1601 | -10/Subcaves | Disturbed a concealed Subdweller 1626 | -10/Subcaves | Learned location of Zion (-7) 1677 | -10/Subcaves | Visited 4L-MR0's lab 1737 | -10/Subcaves | Destroyed by GU-GIK(R) with Subdweller Beam Cannon Last Messages --------------- 01595_ Found Battle Rifle. 01595_ Found 36 Matter. 01596_ Searching scrap... 01596_ Found Sub. Machine Gun. 01596_ Found 23 Matter. 01601_ 5Z-2VS(R) angrily emerges from the Twisted Machinery. 01601_ Searching scrap... 01601_ Found Sub. Laser. 01601_ Found Multitool. 01601_ Found 29 Matter. 01605_ 5Z-2VS(R) destroyed. 01606_ Acquired 2 matter. 01611_ Scrap Shield Fragment affixed to Scrap Shield (+39). 01613_ Scrap Shield Fragment affixed to Scrap Shield (+29). 01626_ Acquired derelict log, extracted data. World map updated: -7/Zion. 01677_ 4L-MR0: "What, already? Ugh, fine! Just take it and go! I only just finished this one... Can't you folks let me experiment with them a little longer before you take them away? 01731_ V3-SWS(R) suffers critical hit (Destroy). Map ----- +----------------------------------------------------+ | ???????????????????????????????????????????? | | ???????????????????????????????????????????? | | ???????????????????????????????????????????? | | ???????????????????????????????????????????? | | ???????????????????????????????????????????? | | ???????????????????????????????????????????? | | ???????????????????????????????????????????? | | ???????????????????????????????????????????? | | ???????????????????????????????????????????? | | ???????????????????????????????????????????? | | ???????????????????????????????????????????? | | ???????????????????????????????????????????? | | ???????????????????????????????????????????? | | ???????????????????????????????????????????? | | ???????????????????????????????????????????? | | ???????????????????????????????????????????? | | ??????????????????????????????##???????????? | | ????????????????????????????? ???????????? | | ??????????????????????????## ???????????? | | ????????????????????????? ????????????? | | ???????????????????????? #?????????????? | | ??????????????????????? #??????????????? | | ??????????????????????# R##### ?????????? | | ????????????????###### ????????? | | ???????????????## #???????????????? | | ???????????????# @ #???????????????? | | ???????????????# ### R ????????? | | ???????????????# ## #???? ?????????? | | ???????????????##?# ##?????? ?????????? | | ?????????????????## #????????? ??????????? | | ?????????????????# ##????????????????????? | | ????????????????## #????????????????????? | | ???????????????## ##???????????????????? | | ??????????????## ##??????????????????? | | ??????????????# #??????????????????? | | ??????????????# #??????????????????? | | ??????????????## #??????????????????? | | ???????????????## #??????????????????? | | ???????????????## #??????????????????? | | ???##??????????# #??????????????????? | | ???#*#""#?????## #??????????????????? | | ???#"#""#?###?# #??????????????????? | | ???# ""#?# ###" #??????????????????? | | ???# X"#?# # " ##??????????????????? | | ???# ""#?# #???????????????????? | | ???#" "#?# ##???????????????????? | | ????" "#?# #" #????????????????????? | | ????##+##### ## #????????????????????? | | ??###" ##" # ##???????????????????? | | ??# " "" "" ## ##??????????????????? | +----------------------------------------------------+ Best States ------------- Heat Dissipation 25 Energy Generation 10 Energy Capacity 250 Matter Stores 300 Matter Capacity 300 Sight Range 16 Terrain Scan Density 10 Armor Coverage 800 Evasion (%) 44 Recoil Reduction 1 Item Schematics ----------------- None Robot Schematics ------------------ None Fabricated ------------ Nothing Alien Tech Used ----------------- None Achievements -------------- None Challenges ------------ None Game ------ Seed QuantumDrainedTube Manual? 1 Play Time 00:18:24 Cumulative 340.3 hours Start 2023.06.25 @ 08:29:30 End 2023.06.25 @ 08:43:15 Sessions 1 Manual Loads 0 Difficulty Rogue Special Mode None Game No. 175 Rogue 175 Adventurer 0 Explorer 0 Win Type - Total 11 Types 6/0/3/0/0/0/2/0/0 Lore% 81 Gallery% 87 Achievement% 78 Wizard Run 0 Options --------- ASCII 0 Keyboard 1 Movement Numpad Keybinds 0 Fullscreen 2 Font 12/Smallcaps Map View 83x54 Tactical HUD 1 Map Filters NONE Filters NONE Steam 1 RUN: 2b1104aa-58ce-47e0-8f57-ad119550bad3